[Event "*** SCC Grand Prix: Titled Tuesday Blitz"]
[Site "Chess.com"]
[Date "2020.08.25"]
[Round "7"]
[White "Lion-Al-Messi"]
[Black "kobemagic"]
[Result "1-0"]
[WhiteElo "2566"]
[BlackElo "2408"]
[TimeControl "180+1"]
[EndTime "11:19:48 PDT"]
[Termination "Lion-Al-Messi won on time"]

1. e4 {[%clk 0:03:00.9]} 1... c5 {[%clk 0:02:59.1]} 2. Nf3 {[%clk 0:03:01.2]}
2... Nc6 {[%clk 0:02:58.7]} 3. Nc3 {[%clk 0:03:00.3]} 3... g6 {[%clk 0:02:58.4]}
4. d4 {[%clk 0:02:58.4]} 4... cxd4 {[%clk 0:02:57.8]} 5. Nxd4 {[%clk 0:02:59.3]}
5... Bg7 {[%clk 0:02:58.4]} 6. Be3 {[%clk 0:02:59.8]} 6... Nf6 {[%clk
0:02:56.6]} 7. Bc4 {[%clk 0:02:53.9]} 7... Qa5 {[%clk 0:02:55]} 8. O-O {[%clk
0:02:53.1]} 8... O-O {[%clk 0:02:55]} 9. Nd5 {[%clk 0:02:49.2]} 9... Nxd5 {[%clk
0:02:37.9]} 10. exd5 {[%clk 0:02:48.4]} 10... Ne5 {[%clk 0:02:26.9]} 11. Bb3
{[%clk 0:02:44.1]} 11... d6 {[%clk 0:02:23.1]} 12. Re1 {[%clk 0:02:25.7]} 12...
Re8 {[%clk 0:02:05.8]} 13. h3 {[%clk 0:02:20.3]} 13... Nd7 {[%clk 0:01:45.7]}
14. c3 {[%clk 0:02:05.1]} 14... Nc5 {[%clk 0:01:44.6]} 15. Bc2 {[%clk
0:02:04.3]} 15... Qc7 {[%clk 0:01:37.6]} 16. Qf3 {[%clk 0:02:03]} 16... a6
{[%clk 0:01:28.3]} 17. Rad1 {[%clk 0:02:01.1]} 17... b5 {[%clk 0:01:27]} 18. Nc6
{[%clk 0:01:59.5]} 18... Bb7 {[%clk 0:01:22.2]} 19. Bd4 {[%clk 0:01:24.2]} 19...
Bxd4 {[%clk 0:01:16.5]} 20. cxd4 {[%clk 0:01:25.1]} 20... Bxc6 {[%clk
0:00:55.9]} 21. dxc5 {[%clk 0:01:25.1]} 21... Bb7 {[%clk 0:00:36.9]} 22. c6
{[%clk 0:01:25.3]} 22... Bc8 {[%clk 0:00:37.2]} 23. Rd4 {[%clk 0:01:24]} 23...
e6 {[%clk 0:00:34.2]} 24. Rh4 {[%clk 0:01:19.5]} 24... Qd8 {[%clk 0:00:24.5]}
25. Qf4 {[%clk 0:01:11.9]} 25... Re7 {[%clk 0:00:06.2]} 26. Qh6 {[%clk 0:00:39]}
26... f5 {[%clk 0:00:06.3]} 27. dxe6 {[%clk 0:00:32.6]} 27... Raa7 {[%clk
0:00:06.5]} 28. Bb3 {[%clk 0:00:29.4]} 28... d5 {[%clk 0:00:06.3]} 29. Qg5
{[%clk 0:00:25.6]} 29... Qe8 {[%clk 0:00:03.9]} 30. Bxd5 {[%clk 0:00:23]} 30...
Bxe6 {[%clk 0:00:02.7]} 31. Rxe6 {[%clk 0:00:22.2]} 31... Rxe6 {[%clk
0:00:02.9]} 32. Qf6 {[%clk 0:00:20.3]} 32... Re7 {[%clk 0:00:01.9]} 33. c7
{[%clk 0:00:15.7]} 1-0

[Event "*** SCC Grand Prix: Titled Tuesday Blitz"]
[Site "Chess.com"]
[Date "2020.08.25"]
[Round "7"]
[White "Alexander_Moskalenko"]
[Black "Alexsur1981"]
[Result "1/2-1/2"]
[WhiteElo "2777"]
[BlackElo "2676"]
[TimeControl "180+1"]
[EndTime "11:19:49 PDT"]
[Termination "Game drawn by repetition"]

1. c4 {[%clk 0:03:00.9]} 1... e6 {[%clk 0:02:58.1]} 2. Nf3 {[%clk 0:02:59.1]}
2... d5 {[%clk 0:02:58.6]} 3. d4 {[%clk 0:02:59.6]} 3... c6 {[%clk 0:02:58.6]}
4. Nbd2 {[%clk 0:02:56.7]} 4... f5 {[%clk 0:02:58.1]} 5. g3 {[%clk 0:02:55.3]}
5... Nf6 {[%clk 0:02:58.2]} 6. Bg2 {[%clk 0:02:56]} 6... Bd6 {[%clk 0:02:58.4]}
7. O-O {[%clk 0:02:56.7]} 7... O-O {[%clk 0:02:58.9]} 8. Ne5 {[%clk 0:02:56.5]}
8... Bd7 {[%clk 0:02:55.6]} 9. Qc2 {[%clk 0:02:55]} 9... Be8 {[%clk 0:02:54.7]}
10. cxd5 {[%clk 0:02:55.3]} 10... cxd5 {[%clk 0:02:53.8]} 11. Ndf3 {[%clk
0:02:53.4]} 11... Nc6 {[%clk 0:02:53.1]} 12. Bf4 {[%clk 0:02:49.9]} 12... Rc8
{[%clk 0:02:50.1]} 13. Rac1 {[%clk 0:02:38.8]} 13... Ne4 {[%clk 0:02:43.2]} 14.
Qb1 {[%clk 0:02:24]} 14... Bxe5 {[%clk 0:02:36.4]} 15. Bxe5 {[%clk 0:02:19.7]}
15... Nxe5 {[%clk 0:02:34.3]} 16. Nxe5 {[%clk 0:02:07.2]} 16... Bb5 {[%clk
0:02:24.2]} 17. Rxc8 {[%clk 0:02:06.2]} 17... Qxc8 {[%clk 0:02:24.4]} 18. Rc1
{[%clk 0:02:06.9]} 18... Qe8 {[%clk 0:02:06.1]} 19. e3 {[%clk 0:02:03.5]} 19...
Nd2 {[%clk 0:02:00.4]} 20. Qc2 {[%clk 0:02:01.6]} 20... Nc4 {[%clk 0:02:00.9]}
21. Nf3 {[%clk 0:01:56.5]} 21... Qe7 {[%clk 0:01:52.8]} 22. b3 {[%clk
0:01:56.3]} 22... Nd6 {[%clk 0:01:53.3]} 23. Bf1 {[%clk 0:01:21]} 23... Bxf1
{[%clk 0:01:38]} 24. Kxf1 {[%clk 0:01:21.9]} 24... Rc8 {[%clk 0:01:29.5]} 25.
Qxc8+ {[%clk 0:01:21.8]} 25... Nxc8 {[%clk 0:01:30.4]} 26. Rxc8+ {[%clk
0:01:21.7]} 26... Kf7 {[%clk 0:01:31.3]} 27. Ne5+ {[%clk 0:01:22.3]} 27... Kf6
{[%clk 0:01:31.6]} 28. h4 {[%clk 0:01:15]} 28... g6 {[%clk 0:01:28.8]} 29. Rf8+
{[%clk 0:00:55.3]} 29... Qxf8 {[%clk 0:01:25.8]} 30. Nd7+ {[%clk 0:00:55.9]}
30... Ke7 {[%clk 0:01:26.3]} 31. Nxf8 {[%clk 0:00:56.8]} 31... Kxf8 {[%clk
0:01:27.2]} 32. Ke2 {[%clk 0:00:57.1]} 32... b5 {[%clk 0:01:25.7]} 33. Kf3
{[%clk 0:00:51.1]} 33... Ke7 {[%clk 0:01:25.8]} 34. Kf4 {[%clk 0:00:51.6]} 34...
Kf6 {[%clk 0:01:26.5]} 35. g4 {[%clk 0:00:52.2]} 35... fxg4 {[%clk 0:01:26.5]}
36. Kxg4 {[%clk 0:00:53.1]} 36... b4 {[%clk 0:01:22.6]} 37. Kf4 {[%clk 0:00:45]}
37... h6 {[%clk 0:00:56.1]} 38. f3 {[%clk 0:00:44.4]} 38... g5+ {[%clk 0:00:51]}
39. hxg5+ {[%clk 0:00:43.5]} 39... hxg5+ {[%clk 0:00:51.9]} 40. Kg4 {[%clk
0:00:43.2]} 40... Kg6 {[%clk 0:00:51.8]} 41. f4 {[%clk 0:00:15.4]} 41... gxf4
{[%clk 0:00:49]} 42. Kxf4 {[%clk 0:00:16.3]} 42... Kf6 {[%clk 0:00:49.2]} 43. e4
{[%clk 0:00:08.6]} 43... a6 {[%clk 0:00:44.8]} 44. exd5 {[%clk 0:00:04.5]} 44...
exd5 {[%clk 0:00:45.7]} 45. Kg4 {[%clk 0:00:05.1]} 45... Kg6 {[%clk 0:00:45.2]}
46. Kf4 {[%clk 0:00:06]} 46... Kf6 {[%clk 0:00:45.7]} 47. Kg4 {[%clk 0:00:06.8]}
47... Kg6 {[%clk 0:00:42.8]} 48. Kf4 {[%clk 0:00:07.7]} 48... Kf6 {[%clk
0:00:43.3]} 1/2-1/2

[Event "*** SCC Grand Prix: Titled Tuesday Blitz"]
[Site "Chess.com"]
[Date "2020.08.25"]
[Round "7"]
[White "Izoria123"]
[Black "arminmusovic"]
[Result "1-0"]
[WhiteElo "2842"]
[BlackElo "2583"]
[TimeControl "180+1"]
[EndTime "11:19:50 PDT"]
[Termination "Izoria123 won by resignation"]

1. e4 {[%clk 0:03:00.9]} 1... c6 {[%clk 0:02:58.7]} 2. d3 {[%clk 0:02:56.6]}
2... d5 {[%clk 0:02:59.6]} 3. Nc3 {[%clk 0:02:56.1]} 3... g6 {[%clk 0:02:58.6]}
4. g3 {[%clk 0:02:39.3]} 4... Bg7 {[%clk 0:02:46.7]} 5. Bg2 {[%clk 0:02:38.7]}
5... e6 {[%clk 0:02:45.1]} 6. Nge2 {[%clk 0:02:31.6]} 6... Ne7 {[%clk
0:02:25.2]} 7. d4 {[%clk 0:02:30.1]} 7... O-O {[%clk 0:02:13.2]} 8. O-O {[%clk
0:02:28.6]} 8... Re8 {[%clk 0:02:09.5]} 9. Bf4 {[%clk 0:02:25.4]} 9... Nd7
{[%clk 0:02:02.1]} 10. Qd2 {[%clk 0:02:17.6]} 10... b6 {[%clk 0:01:42.2]} 11.
Rfe1 {[%clk 0:02:12.8]} 11... Bb7 {[%clk 0:01:41.6]} 12. Rad1 {[%clk 0:02:12.5]}
12... Rc8 {[%clk 0:01:41.5]} 13. Bh6 {[%clk 0:02:11.3]} 13... Nf8 {[%clk
0:01:37.6]} 14. h4 {[%clk 0:02:08.6]} 14... Qd6 {[%clk 0:01:26.1]} 15. Bxg7
{[%clk 0:02:02.3]} 15... Kxg7 {[%clk 0:01:25.8]} 16. h5 {[%clk 0:02:02.4]} 16...
h6 {[%clk 0:01:03.6]} 17. hxg6 {[%clk 0:02:00.2]} 17... Nfxg6 {[%clk 0:01:00]}
18. e5 {[%clk 0:01:53.6]} 18... Qd8 {[%clk 0:00:49.2]} 19. Nf4 {[%clk
0:01:44.3]} 19... Nxf4 {[%clk 0:00:45.6]} 20. Qxf4 {[%clk 0:01:45.2]} 20... Nf5
{[%clk 0:00:42.4]} 21. Bh3 {[%clk 0:01:40.7]} 21... Qg5 {[%clk 0:00:42.4]} 22.
Bxf5 {[%clk 0:01:38.5]} 22... exf5 {[%clk 0:00:39.3]} 23. Rd3 {[%clk 0:01:16.7]}
23... Re6 {[%clk 0:00:34.7]} 24. Rf3 {[%clk 0:01:15.5]} 24... Kg6 {[%clk
0:00:29.2]} 25. Nd1 {[%clk 0:01:06.4]} 25... Rce8 {[%clk 0:00:25]} 26. Ne3
{[%clk 0:01:04.9]} 26... f6 {[%clk 0:00:15.2]} 27. exf6 {[%clk 0:00:51.4]} 27...
Qxf4 {[%clk 0:00:13.7]} 28. Rxf4 {[%clk 0:00:52.3]} 28... Bc8 {[%clk 0:00:12.5]}
29. f7 {[%clk 0:00:49.5]} 29... Rf8 {[%clk 0:00:11.7]} 30. Ng2 {[%clk
0:00:48.4]} 30... Rxe1+ {[%clk 0:00:11.3]} 31. Nxe1 {[%clk 0:00:49.3]} 31...
Rxf7 {[%clk 0:00:12.1]} 32. Nf3 {[%clk 0:00:49.2]} 32... Re7 {[%clk 0:00:12.6]}
33. Ne5+ {[%clk 0:00:49.1]} 33... Kg5 {[%clk 0:00:12.4]} 34. Rh4 {[%clk
0:00:48.2]} 34... c5 {[%clk 0:00:11.7]} 35. f4+ {[%clk 0:00:48.1]} 35... Kf6
{[%clk 0:00:10.8]} 36. Rxh6+ {[%clk 0:00:48.2]} 36... Kg7 {[%clk 0:00:11.3]} 37.
Rg6+ {[%clk 0:00:45.6]} 37... Kh7 {[%clk 0:00:11.2]} 38. Rd6 {[%clk 0:00:39.4]}
38... cxd4 {[%clk 0:00:10.5]} 39. Nf3 {[%clk 0:00:35.3]} 39... Re2 {[%clk
0:00:09.6]} 40. Nxd4 {[%clk 0:00:33.6]} 40... Rd2 {[%clk 0:00:09.7]} 41. Rxd5
{[%clk 0:00:32.2]} 41... Ba6 {[%clk 0:00:09.8]} 42. a4 {[%clk 0:00:27.9]} 42...
Kg6 {[%clk 0:00:10]} 43. Rd6+ {[%clk 0:00:27.8]} 43... Kh5 {[%clk 0:00:10.1]}
44. Nxf5 {[%clk 0:00:27.4]} 44... Rxc2 {[%clk 0:00:08.9]} 45. Rh6+ {[%clk
0:00:27.1]} 45... Kg4 {[%clk 0:00:08.7]} 46. Ne3+ {[%clk 0:00:28]} 46... Kxg3
{[%clk 0:00:09.4]} 47. Nxc2 {[%clk 0:00:28.9]} 1-0

[Event "*** SCC Grand Prix: Titled Tuesday Blitz"]
[Site "Chess.com"]
[Date "2020.08.25"]
[Round "7"]
[White "EddieMarsalla"]
[Black "Logman74"]
[Result "1-0"]
[WhiteElo "2542"]
[BlackElo "2388"]
[TimeControl "180+1"]
[EndTime "11:19:51 PDT"]
[Termination "EddieMarsalla won on time"]

1. d4 {[%clk 0:03:00.9]} 1... d5 {[%clk 0:02:59.1]} 2. Bg5 {[%clk 0:03:01.3]}
2... Nf6 {[%clk 0:02:57.8]} 3. Nd2 {[%clk 0:03:01.1]} 3... e6 {[%clk 0:02:57.6]}
4. e3 {[%clk 0:03:01.2]} 4... Be7 {[%clk 0:02:57.6]} 5. Bd3 {[%clk 0:03:01.3]}
5... O-O {[%clk 0:02:58.1]} 6. Qe2 {[%clk 0:03:01.5]} 6... b6 {[%clk 0:02:57.1]}
7. f4 {[%clk 0:03:01.3]} 7... c5 {[%clk 0:02:56.7]} 8. c3 {[%clk 0:03:00.7]}
8... a5 {[%clk 0:02:55]} 9. Ngf3 {[%clk 0:03:00.5]} 9... Ba6 {[%clk 0:02:54.7]}
10. Bxa6 {[%clk 0:03:00.9]} 10... Nxa6 {[%clk 0:02:54.2]} 11. Ne5 {[%clk
0:03:01.8]} 11... Qd6 {[%clk 0:02:46.4]} 12. O-O {[%clk 0:03:01.5]} 12... Ne4
{[%clk 0:02:42.4]} 13. Nxe4 {[%clk 0:03:01]} 13... dxe4 {[%clk 0:02:41.6]} 14.
Bxe7 {[%clk 0:02:49.6]} 14... Qxe7 {[%clk 0:02:41.4]} 15. f5 {[%clk 0:02:47]}
15... f6 {[%clk 0:02:36.5]} 16. Nc4 {[%clk 0:02:43.7]} 16... exf5 {[%clk
0:02:34.2]} 17. Nxb6 {[%clk 0:02:43.2]} 17... Ra7 {[%clk 0:02:22.1]} 18. Rxf5
{[%clk 0:02:42.3]} 18... cxd4 {[%clk 0:02:19.1]} 19. exd4 {[%clk 0:02:32.9]}
19... Nc7 {[%clk 0:02:07.1]} 20. Re1 {[%clk 0:02:29.3]} 20... Rb7 {[%clk
0:01:56]} 21. Qc4+ {[%clk 0:02:20.8]} 21... Kh8 {[%clk 0:01:54.6]} 22. Qc6
{[%clk 0:02:11]} 22... Rfb8 {[%clk 0:01:26]} 23. Rxe4 {[%clk 0:02:10.3]} 23...
Qf7 {[%clk 0:01:12.9]} 24. Nc4 {[%clk 0:02:07.6]} 24... Nb5 {[%clk 0:01:08.9]}
25. Rxb5 {[%clk 0:02:00.6]} 25... Rxb5 {[%clk 0:01:03.6]} 26. Nd6 {[%clk
0:02:00.2]} 26... Qd5 {[%clk 0:00:59.2]} 27. Qxd5 {[%clk 0:01:47.7]} 27... Rxd5
{[%clk 0:00:58.3]} 28. Nc4 {[%clk 0:01:45.4]} 28... a4 {[%clk 0:00:55]} 29. b4
{[%clk 0:01:38]} 29... Rf5 {[%clk 0:00:39.8]} 30. Ne3 {[%clk 0:01:21.7]} 30...
Rg5 {[%clk 0:00:36.2]} 31. c4 {[%clk 0:01:19.3]} 31... Kg8 {[%clk 0:00:34.4]}
32. b5 {[%clk 0:01:18.6]} 32... Kf7 {[%clk 0:00:33.4]} 33. g4 {[%clk 0:01:15.3]}
33... h5 {[%clk 0:00:17.8]} 34. h3 {[%clk 0:01:13.9]} 34... hxg4 {[%clk
0:00:17.2]} 35. hxg4 {[%clk 0:01:13.5]} 35... g6 {[%clk 0:00:14.8]} 36. Kf2
{[%clk 0:01:05]} 36... f5 {[%clk 0:00:14.8]} 37. gxf5 {[%clk 0:01:04.5]} 37...
gxf5 {[%clk 0:00:15]} 38. Re5 {[%clk 0:01:04.6]} 38... Kf6 {[%clk 0:00:15.1]}
39. Nd5+ {[%clk 0:01:04.4]} 39... Kg6 {[%clk 0:00:13.3]} 40. b6 {[%clk
0:01:04.5]} 40... Rg4 {[%clk 0:00:11.3]} 41. Ke3 {[%clk 0:00:52.1]} 41... a3
{[%clk 0:00:10.7]} 42. c5 {[%clk 0:00:49.9]} 42... Rg3+ {[%clk 0:00:10.9]} 43.
Kf2 {[%clk 0:00:48.3]} 43... Rd3 {[%clk 0:00:07.3]} 44. Nf4+ {[%clk 0:00:48]}
44... Kg5 {[%clk 0:00:04.7]} 45. Nxd3 {[%clk 0:00:48.9]} 1-0

[Event "*** SCC Grand Prix: Titled Tuesday Blitz"]
[Site "Chess.com"]
[Date "2020.08.25"]
[Round "7"]
[White "Savva09022009"]
[Black "Zarinur"]
[Result "1-0"]
[WhiteElo "2321"]
[BlackElo "2133"]
[TimeControl "180+1"]
[EndTime "11:19:51 PDT"]
[Termination "Savva09022009 won by resignation"]

1. e4 {[%clk 0:03:00.9]} 1... e5 {[%clk 0:02:57.7]} 2. Nf3 {[%clk 0:03:00.6]}
2... Nc6 {[%clk 0:02:56.9]} 3. Bb5 {[%clk 0:03:00.8]} 3... a6 {[%clk 0:02:51.4]}
4. Ba4 {[%clk 0:03:00.7]} 4... d6 {[%clk 0:02:50.4]} 5. O-O {[%clk 0:02:59.9]}
5... Bg4 {[%clk 0:02:48.7]} 6. c3 {[%clk 0:02:57.5]} 6... Qf6 {[%clk 0:02:45]}
7. h3 {[%clk 0:02:53.6]} 7... Bxf3 {[%clk 0:02:44.4]} 8. Qxf3 {[%clk 0:02:53.2]}
8... Qxf3 {[%clk 0:02:43.9]} 9. gxf3 {[%clk 0:02:53.7]} 9... Ne7 {[%clk
0:02:42.1]} 10. d3 {[%clk 0:02:52.1]} 10... g6 {[%clk 0:02:34.6]} 11. f4 {[%clk
0:02:51.8]} 11... Bg7 {[%clk 0:02:33.3]} 12. fxe5 {[%clk 0:02:51.9]} 12... dxe5
{[%clk 0:02:32.8]} 13. Be3 {[%clk 0:02:51.8]} 13... O-O-O {[%clk 0:02:28.9]} 14.
Bc2 {[%clk 0:02:46.8]} 14... f5 {[%clk 0:01:18.3]} 15. f3 {[%clk 0:02:45.1]}
15... f4 {[%clk 0:01:15.5]} 16. Bf2 {[%clk 0:02:44]} 16... g5 {[%clk 0:01:15.2]}
17. Nd2 {[%clk 0:02:41]} 17... Ng6 {[%clk 0:01:14.3]} 18. Nb3 {[%clk 0:02:38.2]}
18... h5 {[%clk 0:01:07.3]} 19. Rad1 {[%clk 0:02:36.8]} 19... g4 {[%clk
0:00:56]} 20. fxg4 {[%clk 0:02:31.9]} 20... hxg4 {[%clk 0:00:56.9]} 21. hxg4
{[%clk 0:02:32.3]} 21... Rh3 {[%clk 0:00:55.7]} 22. Kg2 {[%clk 0:01:37.1]} 22...
Rdh8 {[%clk 0:00:53.5]} 23. Bg1 {[%clk 0:01:32.6]} 23... Rg3+ {[%clk 0:00:38.9]}
24. Kf2 {[%clk 0:01:31.3]} 24... Nh4 {[%clk 0:00:36.3]} 25. Nd2 {[%clk
0:01:15.7]} 25... Rxg4 {[%clk 0:00:21]} 26. Ke2 {[%clk 0:01:10.7]} 26... Rg2+
{[%clk 0:00:20.4]} 27. Rf2 {[%clk 0:01:03.1]} 27... Rxf2+ {[%clk 0:00:19.5]} 28.
Bxf2 {[%clk 0:01:03.2]} 28... Bf6 {[%clk 0:00:18.8]} 29. Rg1 {[%clk 0:00:59.2]}
29... Ne7 {[%clk 0:00:13.8]} 30. d4 {[%clk 0:00:56.1]} 30... Nhg6 {[%clk
0:00:13]} 31. Nc4 {[%clk 0:00:50.2]} 31... Rh2 {[%clk 0:00:08.9]} 32. Kf1 {[%clk
0:00:42.9]} 32... exd4 {[%clk 0:00:07.7]} 33. cxd4 {[%clk 0:00:42.6]} 33... b5
{[%clk 0:00:07.6]} 34. e5 {[%clk 0:00:29.2]} 34... bxc4 {[%clk 0:00:06]} 35.
exf6 {[%clk 0:00:28.2]} 35... Nd5 {[%clk 0:00:03.7]} 36. Bxg6 {[%clk 0:00:25.5]}
36... Ne3+ {[%clk 0:00:03.4]} 37. Bxe3 {[%clk 0:00:24.8]} 37... fxe3 {[%clk
0:00:04.3]} 38. Bf5+ {[%clk 0:00:24.9]} 1-0

[Event "*** SCC Grand Prix: Titled Tuesday Blitz"]
[Site "Chess.com"]
[Date "2020.08.25"]
[Round "7"]
[White "RobertoJBM"]
[Black "Saxar85"]
[Result "0-1"]
[WhiteElo "2645"]
[BlackElo "2781"]
[TimeControl "180+1"]
[EndTime "11:19:52 PDT"]
[Termination "Saxar85 won on time"]

1. d4 {[%clk 0:03:00.9]} 1... Nf6 {[%clk 0:02:57.7]} 2. c4 {[%clk 0:02:59.3]}
2... e6 {[%clk 0:02:52.7]} 3. Nc3 {[%clk 0:02:58.3]} 3... Bb4 {[%clk 0:02:50.4]}
4. Qc2 {[%clk 0:02:58.4]} 4... d6 {[%clk 0:02:47.9]} 5. Nf3 {[%clk 0:02:56.4]}
5... Nbd7 {[%clk 0:02:42.9]} 6. g3 {[%clk 0:02:54.9]} 6... O-O {[%clk
0:02:35.1]} 7. Bg2 {[%clk 0:02:53.4]} 7... e5 {[%clk 0:02:34]} 8. a3 {[%clk
0:02:50.9]} 8... Bxc3+ {[%clk 0:02:31.8]} 9. Qxc3 {[%clk 0:02:50.8]} 9... Re8
{[%clk 0:02:29.5]} 10. O-O {[%clk 0:02:42.7]} 10... e4 {[%clk 0:02:26.5]} 11.
Nd2 {[%clk 0:02:30.5]} 11... Nb6 {[%clk 0:02:13.3]} 12. b3 {[%clk 0:02:11.5]}
12... Bf5 {[%clk 0:02:02.5]} 13. Bb2 {[%clk 0:02:05.1]} 13... d5 {[%clk
0:02:01.9]} 14. a4 {[%clk 0:01:50.6]} 14... c6 {[%clk 0:01:53.3]} 15. a5 {[%clk
0:01:48.9]} 15... Nbd7 {[%clk 0:01:52.9]} 16. e3 {[%clk 0:01:35]} 16... a6
{[%clk 0:01:51.4]} 17. b4 {[%clk 0:01:33.2]} 17... Nf8 {[%clk 0:01:37.7]} 18. b5
{[%clk 0:01:19.3]} 18... axb5 {[%clk 0:01:35.8]} 19. cxb5 {[%clk 0:01:19.2]}
19... cxb5 {[%clk 0:01:35.7]} 20. Nb3 {[%clk 0:01:19.1]} 20... h5 {[%clk
0:01:02.5]} 21. Rfc1 {[%clk 0:01:16.1]} 21... Ne6 {[%clk 0:00:57.7]} 22. Nc5
{[%clk 0:01:14.6]} 22... Qe7 {[%clk 0:00:47.1]} 23. Nxe6 {[%clk 0:01:06.8]}
23... Qxe6 {[%clk 0:00:46.4]} 24. Qc7 {[%clk 0:01:03.2]} 24... Reb8 {[%clk
0:00:35.8]} 25. Qb6 {[%clk 0:00:56.7]} 25... Ra6 {[%clk 0:00:28.2]} 26. Qxb5
{[%clk 0:00:54.6]} 26... Bh3 {[%clk 0:00:26.9]} 27. Bh1 {[%clk 0:00:50.5]} 27...
Bg4 {[%clk 0:00:25.6]} 28. Bg2 {[%clk 0:00:40.9]} 28... Bf3 {[%clk 0:00:25.6]}
29. Bf1 {[%clk 0:00:40.2]} 29... h4 {[%clk 0:00:24.1]} 30. Rc7 {[%clk
0:00:33.9]} 30... Rba8 {[%clk 0:00:19.9]} 31. Bc3 {[%clk 0:00:29.7]} 31... hxg3
{[%clk 0:00:18.9]} 32. hxg3 {[%clk 0:00:22.2]} 32... Ng4 {[%clk 0:00:18.2]} 33.
Qd7 {[%clk 0:00:16.9]} 33... Qh6 {[%clk 0:00:17.1]} 34. Qxf7+ {[%clk 0:00:13.4]}
34... Kh8 {[%clk 0:00:17.2]} 35. Bh3 {[%clk 0:00:12.3]} 35... Rg8 {[%clk
0:00:15.6]} 0-1

[Event "*** SCC Grand Prix: Titled Tuesday Blitz"]
[Site "Chess.com"]
[Date "2020.08.25"]
[Round "7"]
[White "m_ezat"]
[Black "ElGasanov"]
[Result "0-1"]
[WhiteElo "2562"]
[BlackElo "2750"]
[TimeControl "180+1"]
[EndTime "11:19:53 PDT"]
[Termination "ElGasanov won by resignation"]

1. d4 {[%clk 0:03:00.9]} 1... d6 {[%clk 0:02:58.3]} 2. c4 {[%clk 0:02:54.4]}
2... e5 {[%clk 0:02:57.9]} 3. Nf3 {[%clk 0:02:52.9]} 3... e4 {[%clk 0:02:55.8]}
4. Ng5 {[%clk 0:02:52.6]} 4... f5 {[%clk 0:02:56.3]} 5. h4 {[%clk 0:02:51.9]}
5... h6 {[%clk 0:02:45.4]} 6. Nh3 {[%clk 0:02:48.7]} 6... Qxh4 {[%clk
0:02:45.9]} 7. Nc3 {[%clk 0:02:44.5]} 7... c6 {[%clk 0:02:46.2]} 8. g3 {[%clk
0:02:31.8]} 8... Qf6 {[%clk 0:02:39.6]} 9. Nf4 {[%clk 0:02:25.8]} 9... g6 {[%clk
0:02:33.7]} 10. e3 {[%clk 0:02:22.7]} 10... Ne7 {[%clk 0:02:26.5]} 11. g4 {[%clk
0:02:18.4]} 11... Na6 {[%clk 0:02:17]} 12. gxf5 {[%clk 0:02:13.3]} 12... Bxf5
{[%clk 0:02:16.4]} 13. Bg2 {[%clk 0:02:04.5]} 13... g5 {[%clk 0:02:04.6]} 14.
Nh5 {[%clk 0:02:03.6]} 14... Qe6 {[%clk 0:02:01.4]} 15. Nxe4 {[%clk 0:00:54.1]}
15... O-O-O {[%clk 0:01:55.7]} 16. Neg3 {[%clk 0:00:49.2]} 16... Kb8 {[%clk
0:01:31.3]} 17. Qb3 {[%clk 0:00:38.3]} 17... d5 {[%clk 0:01:24.6]} 18. c5 {[%clk
0:00:35.2]} 18... Bg6 {[%clk 0:01:13.2]} 19. Bd2 {[%clk 0:00:34.7]} 19... Nc7
{[%clk 0:01:04.1]} 20. Qa4 {[%clk 0:00:32.4]} 20... Bd3 {[%clk 0:00:50.3]} 21.
b4 {[%clk 0:00:30.9]} 21... Ng6 {[%clk 0:00:40.3]} 22. Qb3 {[%clk 0:00:30.3]}
22... Bc4 {[%clk 0:00:40.1]} 23. Qc2 {[%clk 0:00:27.7]} 23... Nh4 {[%clk
0:00:40.7]} 24. Bh3 {[%clk 0:00:25.4]} 24... Nf3+ {[%clk 0:00:38]} 25. Kd1
{[%clk 0:00:25.2]} 25... Qf7 {[%clk 0:00:38.6]} 26. a4 {[%clk 0:00:20.7]} 26...
Nxd2 {[%clk 0:00:28.5]} 27. Qxd2 {[%clk 0:00:19.2]} 27... Be7 {[%clk 0:00:24.9]}
28. Kc1 {[%clk 0:00:18.4]} 28... Rhg8 {[%clk 0:00:20.9]} 29. Rh2 {[%clk
0:00:18.9]} 29... g4 {[%clk 0:00:20.9]} 30. Bf1 {[%clk 0:00:17.4]} 30... Rdf8
{[%clk 0:00:19]} 31. Bxc4 {[%clk 0:00:16.3]} 31... dxc4 {[%clk 0:00:19.9]} 32.
e4 {[%clk 0:00:15.4]} 32... Bg5 {[%clk 0:00:17.3]} 33. Kc2 {[%clk 0:00:13.6]}
33... Bxd2 {[%clk 0:00:16.3]} 34. Kxd2 {[%clk 0:00:14.3]} 34... Qf3 {[%clk
0:00:16.8]} 35. Rc1 {[%clk 0:00:11.1]} 35... Qd3+ {[%clk 0:00:15.8]} 36. Ke1
{[%clk 0:00:11.8]} 36... Qxd4 {[%clk 0:00:16.6]} 37. Ne2 {[%clk 0:00:10.8]}
37... Qxe4 {[%clk 0:00:16.1]} 38. Ng3 {[%clk 0:00:11.5]} 38... Qe6 {[%clk
0:00:14.8]} 39. Rxh6 {[%clk 0:00:12]} 39... Qxh6 {[%clk 0:00:14.1]} 0-1